bitfinex/quotes_SOLUSD_20260109
["timestamp","ask_amount","ask_price","bid_price","bid_amount"]
[1767965050096,10.0472725,138.19,138.16,0.87110607]
[1767965050485,7.23612185,138.2,138.17,0.67110607]
[1767965050690,0.69601125,138.19,138.16,0.2]
[1767965050898,0.3704634,138.19,138.16,0.2]
[1767965051083,0.3704634,138.19,138.16,0.87110607]
[1767965051286,3.18130312,138.19,138.16,0.87110607]
[1767965051683,2.81083972,138.19,138.16,0.87110607]
[1767965051986,7.93542146,138.2,138.16,0.87110607]
[1767965052181,2.81083972,138.19,138.16,0.87110607]
[1767965053101,3.18130312,138.19,138.16,0.2]
[1767965053298,0.3704634,138.19,138.16,0.2]
[1767965053483,10.74626118,138.2,138.16,0.87110607]
[1767965053996,13.22,138.21,138.17,0.67110607]
[1767965054297,0.37371888,138.2,138.17,2.81083972]
[1767965055273,0.69278832,138.19,138.16,0.2]
[1767965055489,0.69278832,138.19,138.16,10.24871144]
[1767965055798,3.18130312,138.2,138.17,0.67110607]
[1767965056099,0.3704634,138.2,138.17,0.67110607]
[1767965056296,3.18130312,138.2,138.17,0.67110607]
[1767965057597,2.81083972,138.2,138.17,0.67110607]
[1767965059491,7.23562179,138.21,138.18,0.67110607]
[1767965059690,10.04646151,138.21,138.18,0.67110607]
[1767965060492,11.63899698,138.21,138.18,0.67110607]
[1767965062705,0.69601125,138.2,138.16,11.8411115]
[1767965063708,0.69601125,138.2,138.16,12.51221757]
[1767965063885,11.63899698,138.21,138.17,0.67110607]
[1767965064691,4.40337519,138.23,138.2,0.67110607]
[1767965065204,4.40337519,138.23,138.19,7.90741309]
[1767965065205,5.1026748,138.23,138.19,7.90741309]
[1767965065379,4.40337519,138.22,138.19,0.67110607]
[1767965066105,5.1026748,138.23,138.19,0.67110607]
[1767965067183,11.63821819,138.22,138.19,0.67110607]
[1767965067382,11.63821819,138.22,138.16,0.2]
[1767965067383,12.3375178,138.22,138.18,0.67110607]
[1767965069186,5.02700478,138.21,138.18,0.67110607]
[1767965069416,12.3375178,138.22,138.18,0.67110607]
[1767965069717,5.02741231,138.21,138.18,0.67110607]
[1767965069891,12.3375178,138.22,138.18,0.67110607]
[1767965070092,5.02741492,138.21,138.18,0.67110607]
[1767965070298,5.02741492,138.2,138.18,0.67110607]
[1767965070587,12.3375178,138.22,138.18,0.67110607]
[1767965070792,5.03409813,138.21,138.18,5.07448126]
[1767965071094,5.03952817,138.2,138.18,5.07448126]
[1767965071296,12.3375178,138.22,138.18,5.07448126]
[1767965071500,5.03976132,138.21,138.18,5.07448126]
[1767965071696,5.03976132,138.2,138.18,5.07448126]
[1767965072009,7.23539742,138.21,138.18,0.67110607]
[1767965072220,5.03976132,138.2,138.18,5.07448126]
[1767965072392,7.23539742,138.21,138.18,5.07448126]
[1767965072595,5.04285745,138.2,138.18,5.07448126]
[1767965072799,7.23539742,138.21,138.18,5.07448126]
[1767965073110,5.04285745,138.2,138.18,5.07448126]
[1767965073313,7.23539742,138.21,138.18,5.07448126]
[1767965073506,5.04412218,138.2,138.18,5.07448126]
[1767965073709,7.23539742,138.21,138.18,5.07448126]
[1767965073905,5.04412218,138.2,138.19,0.66963027]
[1767965075285,11.6378486,138.23,138.19,4.40337519]
[1767965075286,0.71143414,138.23,138.19,4.40337519]
[1767965075486,7.94563187,138.24,138.2,4.40337519]
[1767965077011,3.77347679,138.33,138.21,13.22]
[1767965077198,4.40337519,138.33,138.28,4.40337519]
[1767965077816,4.40337519,138.32,138.28,4.40337519]
[1767965078123,11.63318248,138.32,138.28,4.40337519]
[1767965078998,12.34461662,138.32,138.28,4.40337519]
[1767965079720,7.94124143,138.32,138.28,4.40337519]
[1767965080018,12.34461662,138.32,138.28,4.40337519]
[1767965080916,12.34461662,138.32,138.26,7.23251742]
[1767965081091,0.71143414,138.3,138.26,4.40337519]
[1767965081509,0.71143414,138.3,138.26,11.63582958]
[1767965084225,0.71143414,138.3,138.26,7.23245439]
[1767965084418,0.71143414,138.3,138.26,11.63582958]
[1767965085099,4.40337519,138.31,138.27,4.40337519]
[1767965085405,5.11480933,138.32,138.27,4.40337519]
[1767965085604,12.3444632,138.32,138.27,4.40337519]
[1767965085823,0.71143414,138.31,138.27,4.40337519]
[1767965086629,0.71143414,138.31,138.27,11.63536984]
[1767965089227,0.71143414,138.31,138.27,7.23199465]
[1767965089443,5.11480933,138.31,138.27,11.63536984]
[1767965091927,5.11480933,138.31,138.27,7.23199465]
[1767965092106,5.11480933,138.31,138.27,11.63536984]
[1767965094328,0.71143414,138.31,138.27,11.63536984]
[1767965094530,5.11480933,138.31,138.27,11.63536984]
[1767965094734,0.72311867,138.3,138.26,7.23241409]
[1767965094907,0.72311867,138.3,138.27,11.63556959]
[1767965095109,0.72311867,138.3,138.27,10.91056959]
[1767965095617,5.12649386,138.31,138.27,11.62230144]
[1767965097336,0.72311867,138.31,138.28,0.71173185]
[1767965097508,0.72311867,138.31,138.27,7.94392625]
[1767965097714,0.72311867,138.31,138.27,12.34730144]
[1767965100128,0.72311867,138.31,138.27,11.63556959]
[1767965100342,0.72311867,138.3,138.26,12.34766453]
[1767965100512,5.12649386,138.3,138.26,12.34766453]
[1767965101639,0.72311867,138.29,138.26,11.63593268]
[1767965101928,4.40337519,138.28,138.25,0.71173185]
[1767965102332,4.40337519,138.28,138.24,11.5287653]
[1767965102541,4.40337519,138.26,138.23,6.61712932]
[1767965102713,4.40337519,138.27,138.23,7.33410451]
[1767965103143,4.40337519,138.27,138.24,0.71697519]
[1767965103512,7.23174294,138.28,138.24,0.71697519]
[1767965103850,11.63461162,138.29,138.25,0.71697519]
[1767965105336,13.34216157,138.32,138.28,0.71697519]
[1767965105546,17.74553676,138.32,138.28,0.71697519]
[1767965106856,7.23022148,138.31,138.28,0.71697519]
[1767965108437,11.63359667,138.31,138.28,0.71697519]
[1767965109144,20.42982568,138.32,138.28,5.12035038]
[1767965109349,24.83320087,138.32,138.28,0.71697519]
[1767965109643,4.40337519,138.31,138.25,0.71697519]
[1767965109942,4.40337519,138.28,138.24,7.23376579]
[1767965110239,4.40337519,138.28,138.24,4.40337519]
[1767965110740,4.40337519,138.28,138.24,11.63701523]
[1767965110944,4.40337519,138.28,138.25,0.71697519]
[1767965111732,4.40337519,138.28,138.25,7.9502241]
[1767965112247,4.40337519,138.28,138.26,0.71697519]
[1767965114336,7.23090472,138.3,138.26,0.71697519]
[1767965114538,11.63371676,138.31,138.27,0.71697519]
[1767965114846,17.60337519,138.31,138.27,0.71697519]
[1767965115054,17.60337519,138.31,138.26,12.35298159]
[1767965115346,17.60337519,138.31,138.27,0.71697519]
[1767965116427,17.60337519,138.31,138.28,0.71697519]
[1767965116428,13.2,138.31,138.28,0.71697519]
[1767965116629,17.60337519,138.31,138.28,0.71697519]
[1767965116949,13.2,138.31,138.28,0.71697519]
[1767965117156,17.60337519,138.31,138.28,0.71697519]
[1767965117748,13.2,138.31,138.28,0.71697519]
[1767965117938,17.60337519,138.31,138.28,0.71697519]
[1767965119130,4.40337519,138.33,138.29,0.71697519]
[1767965119345,0.1,138.34,138.29,0.71697519]
[1767965119634,0.1,138.34,138.3,0.71697519]
[1767965119925,0.1,138.34,138.32,0.71697519]
[1767965120147,0.1,138.34,138.31,11.63335367]
[1767965120648,4.50337519,138.34,138.31,7.94695367]
[1767965120830,4.50337519,138.34,138.31,7.94708274]
[1767965121370,0.1,138.34,138.31,7.94708274]
[1767965122125,0.1,138.34,138.32,0.71697519]
[1767965122327,0.1,138.34,138.31,0.71697519]
[1767965123328,0.1,138.34,138.31,10.75965412]
[1767965123741,0.1,138.34,138.32,3.52961083]
[1767965124454,0.1,138.34,138.33,0.71697519]
[1767965127842,0.1,138.36,138.34,0.71697519]
[1767965128874,18.34968858,138.39,138.35,0.71697519]
[1767965128875,7.22639931,138.39,138.35,0.71697519]
[1767965129070,13.2,138.39,138.36,0.71697519]
[1767965129739,10.0377511,138.41,138.37,0.71697519]
[1767965129940,7.22511546,138.41,138.37,0.71697519]
[1767965130163,0.0999999,138.39,138.36,2.81263564]
[1767965130545,0.2,138.4,138.37,2.81263564]
[1767965130861,0.2,138.4,138.36,7.94449196]
[1767965131040,0.2,138.4,138.36,10.7571276]
[1767965131237,0.2,138.4,138.36,10.04015241]
[1767965131471,23.23713632,138.42,138.38,0.71697519]
[1767965131681,20.42450068,138.42,138.38,0.71697519]
[1767965131845,23.23713632,138.42,138.38,0.71697519]
[1767965133367,2.81263564,138.41,138.38,0.71697519]
[1767965133569,2.81263564,138.41,138.38,0.65697521]
[1767965135073,3.07102562,138.41,138.37,7.22697337]
[1767965135263,10.03758036,138.41,138.37,7.22697337]
[1767965135462,10.03758036,138.41,138.37,7.94833019]
[1767965135643,2.81263564,138.41,138.37,7.94833019]
[1767965136068,2.81263564,138.41,138.38,0.72135682]
[1767965137273,0.099,138.41,138.37,10.03960901]
[1767965137767,23.23727793,138.42,138.38,0.72135682]
[1767965139567,0.25999998,138.4,138.34,61.9]
[1767965139875,2.81263564,138.35,138.32,0.72135682]
[1767965140173,0.02682557,138.32,138.27,18.07996508]
[1767965140373,2.08763564,138.3,138.27,25.31219188]
[1767965140549,2.08763564,138.3,138.27,7.2322268]
[1767965140748,2.81263564,138.29,138.27,7.2322268]
[1767965141675,2.81263564,138.29,138.26,20.4325411]
[1767965142058,7.88595603,138.32,138.27,0.72135682]
[1767965142263,7.88541692,138.33,138.27,0.72135682]
[1767965142478,2.81263564,138.3,138.28,0.72135682]
[1767965143654,2.81263564,138.29,138.28,0.72135682]
[1767965144564,2.81263564,138.3,138.28,0.72135682]
[1767965145258,0.65628991,138.34,138.29,0.72135682]
[1767965145476,2.81263564,138.3,138.27,0.72135682]
[1767965145771,2.81263564,138.3,138.28,0.72135682]
[1767965145977,0.65628991,138.32,138.28,0.72135682]
[1767965146579,2.81263564,138.3,138.28,0.72135682]
[1767965148475,2.81263564,138.29,138.27,0.7165424]
[1767965148893,2.81263564,138.28,138.27,0.7165424]
[1767965149256,2.81263564,138.29,138.27,0.7165424]
[1767965150554,0.70046257,138.3,138.27,0.7165424]
[1767965150555,2.81263564,138.3,138.27,0.7165424]
[1767965150760,2.81263564,138.31,138.28,0.7165424]
[1767965151874,3.51309821,138.29,138.24,13.9165424]
[1767965152079,3.51309821,138.29,138.25,0.7165424]
[1767965152080,2.81263564,138.27,138.25,0.7165424]
[1767965153274,2.81263564,138.28,138.25,0.7165424]
[1767965154179,2.81263564,138.27,138.25,0.7165424]
[1767965156076,2.81263564,138.28,138.25,0.7165424]
[1767965156464,7.93190827,138.29,138.25,0.7165424]
[1767965156665,2.81263564,138.28,138.25,0.7165424]
[1767965157389,2.81263564,138.27,138.25,0.7165424]
[1767965157592,2.81263564,138.28,138.25,0.7165424]
[1767965162889,2.81263564,138.27,138.25,0.7165424]
[1767965165293,7.93188005,138.29,138.25,0.7165424]
[1767965165591,2.81263564,138.27,138.25,0.7165424]
[1767965167995,2.81263564,138.26,138.25,0.7165424]
[1767965168873,2.78263565,138.26,138.25,0.7165424]
[1767965169401,2.81263564,138.27,138.25,0.7165424]
[1767965170384,0.68044892,138.27,138.22,61.9]
[1767965170703,2.81263564,138.26,138.24,7.23374118]
[1767965171280,3.49308456,138.27,138.25,7.23327305]
[1767965172080,3.49308456,138.27,138.24,7.23361502]
[1767965173402,0.68044892,138.27,138.24,7.23361502]
[1767965173598,3.49308456,138.27,138.24,7.23361502]
[1767965173902,3.49308456,138.27,138.24,7.71071582]
[1767965176006,3.49308456,138.27,138.23,7.71142041]
[1767965177500,0.68044892,138.27,138.23,10.04695525]
[1767965177703,3.49308456,138.27,138.23,7.71142041]
[1767965178396,3.49308456,138.27,138.24,0.4771008]
[1767965178608,3.49308456,138.27,138.23,7.71142041]
[1767965178789,0.68044892,138.27,138.23,7.71142041]
[1767965178991,3.49308456,138.27,138.23,7.71142041]
[1767965179195,2.81263564,138.26,138.23,7.71142041]
[1767965181498,10.72591596,138.26,138.22,7.7118882]
[1767965181697,2.81263564,138.25,138.22,7.7118882]
[1767965182203,3.49308456,138.26,138.22,7.7118882]
[1767965184601,5.08067066,138.26,138.22,7.7118882]
[1767965185400,0.68044892,138.26,138.22,25.7989957]
[1767965185587,12.31281442,138.28,138.24,0.4771008]
[1767965185995,0.68044892,138.27,138.24,0.4771008]
[1767965187597,0.68044892,138.27,138.24,11.63379124]
[1767965187798,0.68044892,138.31,138.25,0.4771008]
[1767965188108,0.68044892,138.29,138.25,4.87732254]
[1767965188283,0.68044892,138.29,138.25,0.4771008]
[1767965188485,5.08067066,138.29,138.25,0.4771008]
[1767965188912,0.68044892,138.29,138.25,4.87732254]
[1767965189100,0.68044892,138.29,138.25,7.71009862]
[1767965189382,0.68044892,138.29,138.25,12.11032036]
[1767965190181,5.08067066,138.29,138.25,7.71009862]
[1767965190584,4.40022174,138.28,138.25,7.71009862]
[1767965190813,0.68044892,138.29,138.25,7.71009862]
[1767965191107,5.08067066,138.29,138.25,7.71009862]
[1767965191291,4.40022174,138.28,138.25,7.71009862]
[1767965191713,4.40022174,138.28,138.25,0.4771008]
[1767965192000,4.40022174,138.28,138.25,7.71030314]
[1767965192595,5.08067066,138.28,138.25,7.71030314]
[1767965193179,0.68044892,138.28,138.25,7.71030314]
[1767965193383,5.08067066,138.28,138.25,7.71030314]
[1767965193808,0.68044892,138.28,138.25,7.71030314]
[1767965199513,7.23020725,138.31,138.27,0.4771008]
[1767965199713,0.81277894,138.32,138.28,4.87732254]
[1767965199714,0.67061737,138.32,138.28,4.87732254]
[1767965200187,5.07083911,138.32,138.28,0.4771008]
[1767965201011,5.07083911,138.32,138.28,7.70834925]
[1767965201206,0.67061737,138.32,138.29,0.4771008]
[1767965201386,5.07083911,138.32,138.29,0.4771008]
[1767965202914,5.07083911,138.34,138.3,0.4771008]
[1767965203103,0.67061737,138.34,138.31,0.4771008]
[1767965203493,0.67061737,138.36,138.32,0.4771008]
[1767965203693,5.07083911,138.37,138.33,0.4771008]
[1767965204907,0.67061737,138.37,138.34,0.4771008]
[1767965206918,0.67061737,138.37,138.34,7.70523056]
[1767965208097,5.07083911,138.37,138.34,7.70523056]
[1767965209318,0.67061737,138.37,138.34,7.70523056]
[1767965209493,5.05700271,138.38,138.34,7.70523056]
[1767965210722,0.65678097,138.37,138.34,7.70523056]
[1767965212022,5.05700271,138.36,138.33,7.22872808]
[1767965212204,5.05700271,138.36,138.33,7.70582888]
[1767965213025,5.05700271,138.35,138.32,69.60658181]
[1767965213807,0.65678097,138.34,138.31,20.43003547]
[1767965213999,0.65678097,138.34,138.32,7.22952044]
[1767965215422,5.05700271,138.35,138.32,7.22952044]
[1767965215614,5.05700271,138.36,138.32,7.70662124]
[1767965216448,0.65678097,138.36,138.32,12.10684298]
[1767965217608,0.65678097,138.36,138.32,25.30684298]
[1767965218626,0.65678097,138.36,138.33,7.70590822]
[1767965219430,0.65678097,138.36,138.33,12.10612996]
[1767965220128,0.65678097,138.37,138.33,12.10612996]
[1767965221912,0.65678097,138.39,138.35,4.87732254]
[1767965222119,0.65678097,138.39,138.36,7.22731247]
[1767965223737,0.65678097,138.39,138.36,12.10463501]
[1767965223918,5.08045041,138.4,138.36,12.10463501]
[1767965225031,0.68022867,138.41,138.38,0.4771008]
[1767965226331,0.68022867,138.41,138.38,7.70333993]
[1767965226710,7.32415045,138.43,138.39,0.4771008]
[1767965226917,5.18045041,138.43,138.39,0.4771008]
[1767965227620,0.68022867,138.42,138.39,0.4771008]
[1767965228227,0.68022867,138.42,138.38,43.3697562]
[1767965231738,0.68022867,138.42,138.38,25.30356167]
[1767965232848,5.08045041,138.42,138.38,20.90333993]
[1767965235347,0.68022867,138.42,138.38,20.90333993]
[1767965235641,5.08045041,138.42,138.38,20.90333993]
[1767965237151,4.58045041,138.42,138.38,20.90333993]
[1767965237345,0.18022867,138.42,138.38,25.30356167]
[1767965237549,0.1,138.43,138.4,0.65999428]
[1767965237738,0.1,138.43,138.41,0.65999428]
[1767965238049,1e-08,138.43,138.41,5.06021602]
[1767965238256,0.1,138.48,138.43,0.65999428]
[1767965238547,0.1,138.48,138.47,4.40022174]
[1767965238548,1e-08,138.48,138.47,4.40022174]
[1767965238735,1e-08,138.48,138.46,5.06021602]
[1767965239337,1e-08,138.48,138.47,7.22178089]
[1767965239537,1e-08,138.48,138.46,0.65999428]
[1767965239538,0.68022868,138.48,138.45,13.85999428]
[1767965239737,0.68022868,138.48,138.45,17.60022174]
[1767965240151,0.68022868,138.48,138.45,24.82269102]
[1767965240347,0.68022868,138.48,138.45,25.4826853]
[1767965240526,0.68022868,138.48,138.45,24.82269102]
[1767965240946,0.68022868,138.48,138.45,23.48002049]
[1767965241355,0.68022868,138.48,138.45,11.62269102]
[1767965241734,0.68022868,138.48,138.47,4.40022174]
[1767965242749,1e-08,138.48,138.47,4.40022174]
[1767965242959,0.1,138.5,138.47,4.40022174]
[1767965243459,0.1,138.5,138.48,4.40022174]
[1767965243753,0.1,138.5,138.49,0.65999428]
[1767965244254,11.71959628,138.52,138.49,5.06021602]
[1767965244255,0.1,138.52,138.49,5.06021602]
[1767965244458,0.1,138.52,138.49,0.65999428]
[1767965245358,0.1,138.52,138.49,3.46507245]
[1767965245555,0.1,138.52,138.49,0.65999428]
[1767965246143,0.1,138.52,138.49,7.88063854]
[1767965246559,0.1,138.52,138.5,0.65999428]
[1767965247445,0.1,138.52,138.5,7.87997774]
[1767965247643,0.1,138.52,138.5,0.65999428]
[1767965249242,0.0269833,138.5,138.47,69.12141622]
[1767965249448,2.80507817,138.51,138.47,7.19443292]
[1767965250057,0.1,138.52,138.49,2.80507817]
[1767965250365,0.1,138.53,138.51,2.80507817]
[1767965250664,0.1,138.53,138.5,2.80507817]
[1767965251035,0.1,138.53,138.5,2.77822126]
[1767965251477,0.1,138.53,138.5,9.99797892]
[1767965251679,0.1,138.55,138.52,2.80507817]
[1767965251874,0.1,138.55,138.51,15.98507817]
[1767965252247,2.90507817,138.55,138.5,23.86483011]
[1767965252446,2.90507817,138.55,138.5,41.91537162]
[1767965252862,2.90507817,138.55,138.5,28.73537162]
[1767965253071,2.90507817,138.55,138.5,41.91537162]
[1767965253776,2.90507817,138.55,138.5,41.25537734]
[1767965254072,2.80507817,138.53,138.49,7.22049089]
[1767965254662,2.80507817,138.52,138.49,7.22049089]
[1767965254961,2.80507817,138.53,138.49,7.22049089]
[1767965255280,2.80507817,138.53,138.48,7.90796326]
[1767965256064,2.80507817,138.52,138.48,7.90796326]
[1767965257482,2.80507817,138.52,138.47,0.68691265]
[1767965257762,2.80507817,138.52,138.47,3.49199082]
[1767965259249,2.08007817,138.49,138.46,18.05530355]
[1767965259567,0.66542311,138.51,138.46,18.05530355]
[1767965259757,2.80507817,138.49,138.48,7.907738]
[1767965259960,2.08007818,138.49,138.48,7.907738]
[1767965260374,0.66542311,138.52,138.48,7.22082535]
[1767965260675,3.47050128,138.49,138.48,7.22082535]
[1767965260850,3.47050128,138.49,138.45,25.27988443]
[1767965261669,3.47050128,138.49,138.45,25.96679708]
[1767965262765,2.80507817,138.49,138.46,0.68691265]
[1767965263286,2.08007817,138.49,138.47,0.68691265]
[1767965263584,0.66542311,138.51,138.47,0.68691265]
[1767965263757,2.80507817,138.49,138.47,0.68691265]
[1767965264068,0.66542311,138.51,138.48,7.22125938]
[1767965264267,0.66542311,138.5,138.48,7.22125938]
[1767965264451,2.80507817,138.5,138.48,7.22125938]
[1767965265260,2.80507817,138.5,138.46,25.27728691]
[1767965266450,3.47050128,138.5,138.46,25.27728691]
[1767965266857,2.80507817,138.49,138.46,25.27728691]
[1767965267045,0.66542311,138.5,138.46,25.27728691]
[1767965267255,2.80507817,138.49,138.46,25.27728691]
[1767965267456,0.66542311,138.5,138.46,25.27728691]
[1767965268262,3.47050128,138.5,138.46,28.08236508]
[1767965268476,2.80507817,138.5,138.48,7.88668249]
[1767965271155,2.80507817,138.5,138.48,0.66542311]
[1767965271364,2.80507817,138.5,138.48,7.88653245]
[1767965271965,2.80507817,138.5,138.48,7.22110934]
[1767965272259,2.80507817,138.5,138.47,7.887204]
[1767965272781,2.80507817,138.48,138.46,7.22205503]
[1767965272978,0.70881754,138.49,138.46,7.22205503]
[1767965272979,2.80507817,138.47,138.46,7.22205503]
[1767965273287,2.80507817,138.47,138.44,80.62305213]
[1767965273583,2.80507817,138.47,138.44,62.56542311]
[1767965273781,2.80507817,138.47,138.44,0.66542311]
[1767965274980,2.80507817,138.47,138.45,7.2225335]
[1767965275575,0.70881754,138.48,138.45,7.2225335]
[1767965275773,2.80507817,138.47,138.45,7.2225335]
[1767965276584,3.51389571,138.48,138.45,7.2225335]
[1767965277060,2.80507817,138.47,138.45,7.2225335]
[1767965277685,0.70881754,138.47,138.44,7.22334585]
[1767965280284,3.51389571,138.46,138.44,7.22334585]
[1767965280492,2.80507817,138.47,138.44,7.22334585]
[1767965281087,2.80507817,138.48,138.44,7.22334585]
[1767965281474,2.80507817,138.53,138.44,28.08678865]
[1767965281675,2.80507817,138.5,138.45,2.80507817]
[1767965281870,7.21941405,138.52,138.46,2.80507817]
[1767965282076,2.80507817,138.5,138.45,2.80507817]
[1767965282398,2.80507817,138.5,138.46,0.71664237]
[1767965282573,3.51389571,138.5,138.47,0.71664237]
[1767965282773,2.80507817,138.5,138.47,0.71664237]
[1767965282977,2.80507817,138.5,138.47,7.93813502]
[1767965283392,2.80507817,138.51,138.48,0.72169449]
[1767965283800,3.50005984,138.51,138.47,7.22149265]
[1767965284024,0.69498167,138.5,138.47,7.22149265]
[1767965284796,2.80507817,138.51,138.47,7.94318714]
[1767965285104,2.80507817,138.5,138.49,0.72169449]
[1767965285402,2.80507817,138.5,138.48,7.94275464]
[1767965285782,2.80507817,138.5,138.48,7.22106015]
[1767965285984,0.69498167,138.49,138.47,7.22178089]
[1767965286184,7.91430496,138.52,138.48,0.72169449]
[1767965286398,7.91430496,138.52,138.47,7.22178089]
[1767965286399,1.43083752,138.49,138.47,7.22178089]
[1767965286581,2.80507817,138.5,138.47,7.22178089]
[1767965288310,10.02393926,138.53,138.47,7.22178089]
[1767965288498,2.80507817,138.5,138.47,7.22178089]
[1767965290809,2.80507817,138.48,138.46,68.3970835]
[1767965291004,2.80507817,138.48,138.46,7.2220835]
[1767965291213,7.21937351,138.52,138.46,7.2220835]
[1767965291387,2.80507817,138.5,138.46,10.02716167]
[1767965292090,2.80507817,138.5,138.46,7.2220835]
[1767965292497,2.80507817,138.5,138.46,25.27783967]
[1767965293307,7.21890574,138.53,138.46,25.27783967]
[1767965293484,7.21836155,138.54,138.46,86.45283967]
[1767965293688,2.80507817,138.53,138.48,2.80507817]
[1767965293912,7.31782486,138.55,138.48,2.80507817]
[1767965294115,2.80507817,138.53,138.48,2.80507817]
[1767965294494,0.1,138.55,138.49,7.22073795]
[1767965294693,0.1,138.55,138.51,2.80507817]
[1767965295409,2.90507817,138.55,138.5,2.80507817]
[1767965295608,2.90507817,138.55,138.51,2.80507817]
[1767965296011,2.90507817,138.55,138.5,2.80507817]
[1767965296796,2.90507817,138.55,138.51,7.21969532]
[1767965297200,2.80507817,138.54,138.5,7.22011325]
[1767965297397,7.31767587,138.55,138.5,7.22011325]
[1767965297398,0.1,138.55,138.5,7.22011325]
[1767965297702,2.80507817,138.54,138.5,10.02519142]
[1767965298607,0.1,138.55,138.51,2.80507817]
[1767965299034,0.1,138.55,138.52,7.21917412]
[1767965299718,0.1,138.55,138.52,10.02425229]
[1767965300405,0.1,138.55,138.52,7.21917412]
[1767965300722,2.90507817,138.55,138.51,7.21947943]
[1767965301023,2.90507817,138.55,138.51,10.0245576]
[1767965302325,2.90507817,138.55,138.51,7.21947943]
[1767965303306,10.12278746,138.55,138.5,71.20008892]
[1767965303712,7.31770929,138.55,138.5,71.20008892]
[1767965303902,10.12278746,138.55,138.5,71.20008892]
[1767965304326,2.90507817,138.55,138.5,71.20008892]
[1767965304530,4.48200901,138.55,138.5,68.39501075]
[1767965304820,11.69972999,138.55,138.5,72.77701976]
[1767965305418,7.31772098,138.55,138.5,72.77701976]
[1767965305725,0.1,138.55,138.52,4.38200901]
[1767965305918,0.1,138.55,138.51,4.38200901]
[1767965306517,4.38200901,138.53,138.48,4.38200901]
[1767965306816,4.38200901,138.54,138.49,11.60248691]
[1767965307011,11.60023951,138.54,138.49,11.60248691]
[1767965308726,11.60023951,138.54,138.5,4.38200901]
[1767965309712,0.1,138.55,138.5,4.38200901]
[1767965309919,0.1,138.55,138.51,4.38200901]
[1767965310316,0.1,138.55,138.52,4.38200901]
[1767965310822,0.1,138.55,138.51,4.38200901]
[1767965311425,0.1,138.55,138.51,11.60138218]
[1767965313131,0.1,138.55,138.51,7.21937317]
[1767965313329,0.1,138.55,138.51,11.60138218]
[1767965313719,0.1,138.63,138.54,4.38200901]
[1767965313932,7.21396623,138.62,138.57,4.38200901]
[1767965314136,0.1,138.63,138.58,4.38200901]
[1767965314341,4.48200901,138.63,138.58,4.38200901]
[1767965314635,1e-08,138.66,138.62,4.38200901]
[1767965314834,1e-08,138.66,138.64,4.38200901]
[1767965315011,1e-08,138.66,138.65,4.38200901]
[1767965315224,1e-08,138.66,138.61,0.28432314]
[1767965315416,1e-08,138.66,138.64,11.59492944]
[1767965315721,4.38200902,138.66,138.62,11.59563393]
[1767965316111,4.38200902,138.66,138.61,7.21435443]
[1767965316112,4.38200901,138.65,138.61,7.21435443]
[1767965316312,4.38200901,138.64,138.57,6.6801107]
[1767965316533,4.38200901,138.64,138.59,4.38200901]
[1767965316731,4.38200901,138.64,138.6,7.21497639]
[1767965318016,7.21230734,138.66,138.6,7.21497639]
[1767965318017,7.21243462,138.65,138.6,7.21497639]
[1767965318219,4.38200901,138.64,138.6,7.21497639]
[1767965319354,1e-08,138.66,138.59,4.38200901]
[1767965319355,4.38200901,138.63,138.59,7.21537256]
[1767965319835,4.38200901,138.62,138.58,7.21591303]
[1767965320623,4.38200901,138.62,138.57,7.21638921]
[1767965320941,4.38200901,138.62,138.58,7.21598971]
[1767965321140,4.38200901,138.61,138.58,7.21598971]
[1767965321442,0.28432314,138.65,138.57,7.21656924]
[1767965321645,0.28432314,138.65,138.57,11.59857825]
[1767965321842,4.38200901,138.62,138.57,11.59857825]
[1767965322545,0.28432314,138.65,138.57,11.59857825]
[1767965322723,4.38200901,138.62,138.57,11.59857825]
[1767965322925,0.28432314,138.65,138.58,4.38200901]
[1767965323125,4.38200901,138.63,138.59,4.38200901]
[1767965323325,4.38200901,138.64,138.59,4.38200901]
[1767965323545,7.21188519,138.66,138.6,4.38200901]
[1767965323728,4.38200901,138.65,138.6,4.38200901]
[1767965324135,4.38200901,138.64,138.6,4.38200901]
[1767965324334,1e-08,138.66,138.62,4.38200901]
[1767965324538,1e-08,138.66,138.63,4.38200901]
[1767965325032,1e-08,138.66,138.59,0.28432314]
[1767965325033,1e-08,138.66,138.64,4.38200901]
[1767965325235,1e-08,138.66,138.65,4.38200901]
[1767965325438,1e-08,138.66,138.64,4.38200901]
[1767965325639,13.10913269,138.69,138.65,4.38200901]
[1767965326562,17.4911417,138.69,138.65,4.38200901]
[1767965326851,13.10913269,138.69,138.65,4.32200901]
[1767965327446,13.10913269,138.69,138.65,4.38200901]
[1767965327753,13.10913269,138.69,138.61,61.32313684]
[1767965327930,184.11860224,138.75,138.62,0.28432314]
[1767965328234,314.9997287,138.78,138.62,0.28432314]
[1767965328235,36.86546138,138.77,138.62,0.28432314]
[1767965328433,36.86546138,138.77,138.61,61.32313684]
[1767965328631,0.28432314,138.76,138.62,0.28432314]